bitfinex/quotes_SOLUSD_20251218
["timestamp","ask_amount","ask_price","bid_price","bid_amount"]
[1766093065586,2.86064837,118.27,118.24,0.69]
[1766093066474,3.52064837,118.27,118.24,0.69]
[1766093067200,2.86064837,118.26,118.22,80.79767296]
[1766093067367,3.52064837,118.26,118.23,0.69]
[1766093068180,0.66,118.31,118.21,25.42911633]
[1766093068381,25.5,118.38,118.24,11.67059329]
[1766093068382,3.52064837,118.3,118.24,11.67059329]
[1766093068586,0.66,118.29,118.24,37.09324487]
[1766093069094,0.66,118.29,118.25,2.86064837]
[1766093069285,0.66,118.29,118.25,28.28329995]
[1766093069667,0.66,118.31,118.26,2.86064837]
[1766093069862,0.66,118.3,118.25,12.14064837]
[1766093070487,0.66,118.3,118.26,8.45237259]
[1766093070893,3.52064837,118.3,118.26,8.45237259]
[1766093071996,0.66,118.3,118.26,8.45237259]
[1766093072375,2.86064837,118.3,118.26,8.45237259]
[1766093072705,3.52064837,118.28,118.23,12.14064837]
[1766093072997,3.52064837,118.28,118.24,9.28]
[1766093074791,0.66,118.28,118.24,9.28]
[1766093076802,2.86064837,118.26,118.22,10.43767296]
[1766093077002,0.66,118.24,118.21,9.28]
[1766093077193,0.66,118.24,118.21,17.73310426]
[1766093077384,0.66,118.24,118.21,9.28]
[1766093077584,2.86064837,118.24,118.21,9.28]
[1766093077889,0.66,118.23,118.21,9.28]
[1766093079008,0.66,118.23,118.2,9.26]
[1766093079590,2.86064837,118.21,118.16,2.86064837]
[1766093079795,3.52064837,118.21,118.17,17.73632189]
[1766093079991,2.86064837,118.24,118.18,8.80994492]
[1766093080187,3.52064837,118.21,118.17,17.73632189]
[1766093081702,2.86064837,118.2,118.17,9.28]
[1766093082202,3.52064837,118.2,118.17,9.28]
[1766093082783,2.86064837,118.2,118.17,9.28]
[1766093082988,3.49064837,118.19,118.16,20.87534592]
[1766093083984,0.63,118.19,118.16,10.50767296]
[1766093084295,0.63,118.19,118.16,0.07]
[1766093085695,3.49064837,118.19,118.16,0.07]
[1766093086291,0.63,118.19,118.16,0.07]
[1766093090495,3.55064837,118.19,118.15,70.45]
[1766093090695,0.69,118.18,118.15,70.38]
[1766093090904,3.55064837,118.18,118.15,70.38]
[1766093092593,3.55064837,118.17,118.14,0.2]
[1766093092795,3.55064837,118.17,118.14,61.3]
[1766093094909,3.55064837,118.17,118.14,58.86504392]
[1766093097803,3.55064837,118.17,118.14,58.93504392]
[1766093098721,0.69,118.17,118.14,58.93504392]
[1766093098924,3.55064837,118.17,118.14,58.93504392]
[1766093100620,3.55064837,118.15,118.12,84.51141569]
[1766093100824,0.69,118.17,118.12,0.2]
[1766093101021,3.55064837,118.15,118.12,0.2]
[1766093101400,5.17146439,118.15,118.12,0.2]
[1766093102323,4.48146439,118.16,118.13,9.35]
[1766093102737,5.19146439,118.16,118.13,9.35]
[1766093103631,4.48146439,118.15,118.13,9.35]
[1766093104425,4.48146439,118.15,118.13,19.78767296]
[1766093104828,4.48146439,118.16,118.13,19.78767296]
[1766093105126,4.48146439,118.16,118.13,19.71767296]
[1766093105127,5.19146439,118.16,118.13,19.71767296]
[1766093105327,5.19146439,118.15,118.13,9.28]
[1766093105530,0.71,118.15,118.13,9.28]
[1766093106119,5.19146439,118.16,118.13,9.28]
[1766093106505,5.19146439,118.16,118.13,76.60616168]
[1766093110640,4.48146439,118.16,118.13,76.60616168]
[1766093110856,5.19146439,118.15,118.12,9.48]
[1766093111145,5.19146439,118.15,118.12,70.58]
[1766093111516,18.8993704,118.18,118.12,70.58]
[1766093111517,5.19146439,118.16,118.12,70.65]
[1766093111838,0.71,118.15,118.12,70.65]
[1766093115445,0.68,118.2,118.13,0.07]
[1766093115749,5.16146439,118.17,118.14,0.07]
[1766093116251,5.16146439,118.16,118.14,9.28]
[1766093117284,0.68,118.15,118.14,9.28]
[1766093120245,0.68,118.17,118.14,9.35]
[1766093121042,0.68,118.17,118.14,9.28]
[1766093123452,0.68,118.2,118.16,0.07]
[1766093123656,0.68,118.2,118.16,9.35]
[1766093125753,17.7376858,118.24,118.16,17.74294495]
[1766093125949,4.48146439,118.23,118.18,0.07]
[1766093126148,9.96,118.24,118.19,9.28]
[1766093126457,0.68,118.24,118.2,0.07]
[1766093126637,0.68,118.24,118.21,9.28]
[1766093126838,4.48146439,118.26,118.22,0.07]
[1766093127138,5.16146439,118.26,118.22,0.07]
[1766093127338,0.68,118.26,118.22,13.36140931]
[1766093127537,5.16146439,118.27,118.23,0.07]
[1766093127831,4.48146439,118.27,118.22,18.15994492]
[1766093128040,5.16146439,118.27,118.22,18.15994492]
[1766093129159,0.68,118.27,118.22,18.15994492]
[1766093129350,0.68,118.26,118.22,18.15994492]
[1766093129546,5.16146439,118.26,118.22,18.15994492]
[1766093129854,0.68,118.26,118.22,18.15994492]
[1766093130059,0.68,118.26,118.23,0.07]
[1766093131165,0.68,118.26,118.22,18.15994492]
[1766093131364,5.16146439,118.26,118.22,18.15994492]
[1766093131763,0.68,118.25,118.22,9.28]
[1766093131965,0.68,118.24,118.22,9.28]
[1766093132545,5.16146439,118.26,118.22,9.28]
[1766093132745,0.68,118.25,118.22,9.28]
[1766093134772,5.16146439,118.25,118.22,9.28]
[1766093136267,0.68,118.23,118.21,61.1]
[1766093136470,0.68,118.23,118.2,74.86146439]
[1766093137266,5.16146439,118.23,118.18,24.19913735]
[1766093137464,0.68,118.22,118.18,13.76146439]
[1766093138273,0.68,118.21,118.18,13.76146439]
[1766093139797,0.68,118.21,118.19,4.48146439]
[1766093139996,0.68,118.24,118.2,4.48146439]
[1766093140307,0.68,118.24,118.21,4.48146439]
[1766093140467,0.68,118.24,118.22,4.48146439]
[1766093141785,0.68,118.26,118.23,4.48146439]
[1766093142088,0.68,118.3,118.25,4.48146439]
[1766093142305,0.68,118.3,118.26,4.48146439]
[1766093142465,0.72,118.29,118.26,4.48146439]
[1766093149480,0.72,118.29,118.27,4.48146439]
[1766093149806,0.72,118.29,118.26,4.48146439]
[1766093150209,0.82,118.31,118.27,4.48146439]
[1766093150497,0.72,118.3,118.27,4.48146439]
[1766093150698,0.82,118.31,118.28,4.48146439]
[1766093152422,0.72,118.3,118.26,9.28]
[1766093152625,0.72,118.3,118.27,4.48146439]
[1766093155732,0.72,118.3,118.28,4.48146439]
[1766093155931,0.1,118.31,118.29,4.48146439]
[1766093156426,0.82,118.31,118.29,4.48146439]
[1766093158122,0.82,118.31,118.28,4.48146439]
[1766093161517,0.03,118.31,118.29,4.48146439]
[1766093161717,0.71,118.35,118.3,4.48146439]
[1766093162027,0.71,118.35,118.32,4.48146439]
[1766093162400,4.48146439,118.35,118.3,9.28]
[1766093162604,0.71,118.34,118.3,4.48146439]
[1766093163623,0.71,118.34,118.3,2.85901422]
[1766093164622,2.85901422,118.34,118.29,9.28]
[1766093164826,0.71,118.33,118.3,2.85901422]
[1766093166644,0.71,118.33,118.31,2.85901422]
[1766093166941,0.71,118.33,118.3,2.85901422]
[1766093169339,0.71,118.34,118.29,17.73346692]
[1766093169636,0.71,118.34,118.31,2.85901422]
[1766093169836,0.71,118.34,118.3,2.85901422]
[1766093171837,0.71,118.34,118.3,63.95901422]
[1766093172743,0.71,118.34,118.3,61.95901422]
[1766093173047,0.71,118.34,118.31,2.85901422]
[1766093174520,0.71,118.34,118.3,61.1]
[1766093174724,0.71,118.34,118.3,63.95901422]
[1766093175845,0.71,118.34,118.31,2.85901422]
[1766093176014,0.71,118.34,118.3,63.95901422]
[1766093176427,0.71,118.34,118.3,61.1]
[1766093176623,0.71,118.34,118.3,63.95901422]
[1766093178118,0.71,118.34,118.3,61.1]
[1766093178444,0.71,118.34,118.3,63.95901422]
[1766093180439,0.71,118.34,118.3,61.1]
[1766093180643,0.71,118.34,118.26,9.26]
[1766093180644,0.69,118.3,118.26,9.26]
[1766093180817,2.85901422,118.3,118.26,12.11901422]
[1766093181025,0.69,118.29,118.26,12.11901422]
[1766093181227,2.85901422,118.31,118.26,12.11901422]
[1766093181542,0.69,118.3,118.26,9.26]
[1766093181749,0.69,118.3,118.26,12.11901422]
[1766093181959,0.69,118.3,118.27,2.85901422]
[1766093182459,3.54901422,118.33,118.28,2.85901422]
[1766093182828,3.54901422,118.33,118.29,2.85901422]
[1766093183028,0.69,118.32,118.29,2.85901422]
[1766093184625,0.69,118.32,118.28,2.85901422]
[1766093185428,0.69,118.32,118.29,2.85901422]
[1766093186326,0.69,118.32,118.27,8.45521595]
[1766093186552,0.69,118.29,118.24,88.80461525]
[1766093186736,0.69,118.29,118.25,12.11901422]
[1766093186937,0.69,118.29,118.25,9.26]
[1766093187128,0.69,118.29,118.26,2.85901422]
[1766093187455,0.69,118.29,118.25,12.11901422]
[1766093188835,0.69,118.28,118.25,9.26]
[1766093190247,2.85901422,118.3,118.25,12.11901422]
[1766093190441,0.69,118.29,118.26,2.85901422]
[1766093190740,0.69,118.29,118.25,12.11901422]
[1766093191627,17.71078586,118.34,118.26,2.85901422]
[1766093191958,13.98668718,118.33,118.28,2.85901422]
[1766093192144,0.69,118.32,118.28,12.13901422]
[1766093195352,2.85901422,118.32,118.28,9.28]
[1766093195533,0.69,118.31,118.28,70.38]
[1766093196464,0.69,118.31,118.28,9.28]
[1766093199886,0.69,118.3,118.28,9.28]
[1766093200058,0.69,118.29,118.26,70.38]
[1766093201368,0.69,118.29,118.26,73.23901422]
[1766093201550,0.69,118.3,118.26,12.13901422]
[1766093203269,0.69,118.3,118.26,20.59490747]
[1766093203573,0.69,118.3,118.26,17.73589325]
[1766093203865,0.69,118.3,118.26,20.59490747]
[1766093204376,0.69,118.3,118.26,12.13901422]
[1766093206853,0.69,118.3,118.26,20.59492318]
[1766093207378,0.69,118.3,118.26,81.69492318]
[1766093207570,0.69,118.3,118.26,73.23901422]
[1766093208955,0.69,118.3,118.26,70.38]
[1766093209155,0.69,118.3,118.26,73.23901422]
[1766093210382,3.54901422,118.3,118.26,70.38]
[1766093210678,0.72,118.29,118.26,70.38]
[1766093213971,0.72,118.29,118.26,73.23901422]
[1766093214562,2.85901422,118.32,118.27,2.85901422]
[1766093214790,2.85901422,118.32,118.28,9.28]
[1766093215093,0.72,118.3,118.28,9.28]
[1766093220996,2.85901422,118.31,118.28,9.28]
[1766093221204,0.72,118.31,118.28,9.28]
[1766093221701,0.71,118.32,118.28,9.28]
[1766093221997,0.71,118.31,118.28,9.28]
[1766093223476,0.71,118.3,118.28,9.28]
[1766093223879,0.71,118.28,118.22,7.04857891]
[1766093224191,0.71,118.26,118.22,13.74969093]
[1766093225191,0.71,118.26,118.22,22.20841732]
[1766093226603,0.71,118.26,118.23,4.46969093]
[1766093226778,10.43767296,118.28,118.23,4.46969093]
[1766093227111,0.71,118.28,118.24,4.46969093]
[1766093227489,0.71,118.25,118.21,10.43767296]
[1766093227695,0.71,118.25,118.22,9.28]
[1766093227899,5.17969093,118.25,118.22,9.28]
[1766093228399,5.17969093,118.24,118.22,9.28]
[1766093228710,0.71,118.23,118.22,9.28]
[1766093229292,5.17969093,118.24,118.22,9.28]
[1766093229914,4.34969093,118.23,118.22,9.28]
[1766093230279,5.17969093,118.24,118.22,9.28]
[1766093232209,5.17969093,118.24,118.2,9.28]
[1766093233800,4.46969093,118.24,118.2,9.28]
[1766093233998,5.17969093,118.24,118.2,9.28]
[1766093234311,5.17969093,118.24,118.2,70.38]
[1766093235513,4.46969093,118.23,118.2,70.38]
[1766093235707,0.71,118.2,118.19,0.2]
[1766093236007,5.17969093,118.2,118.19,0.2]
[1766093236410,4.46969093,118.2,118.19,0.2]
[1766093236989,4.46969093,118.2,118.18,9.28]
[1766093237303,0.71,118.23,118.18,9.28]
[1766093237509,0.71,118.22,118.18,9.28]
[1766093237720,5.17969093,118.21,118.16,8.80994492]
[1766093238010,5.17969093,118.21,118.17,9.28]
[1766093238717,4.46969093,118.21,118.17,9.28]
[1766093238894,10.43767296,118.22,118.17,9.28]
[1766093239092,5.17969093,118.21,118.17,9.28]
[1766093240196,4.46969093,118.2,118.17,9.28]
[1766093242498,4.46969093,118.24,118.18,14.12580271]
[1766093242821,4.46969093,118.24,118.18,8.80994492]
[1766093243126,5.17969093,118.25,118.18,13.27963585]
[1766093243506,4.46969093,118.22,118.19,9.28]
[1766093243702,5.17969093,118.22,118.19,9.28]
[1766093244123,12.9258146,118.26,118.19,9.28]
[1766093244124,0.71,118.25,118.19,9.28]
[1766093244333,12.9258146,118.26,118.19,9.28]
[1766093244334,4.46969093,118.23,118.19,9.28]
[1766093244534,5.17969093,118.23,118.19,9.28]
[1766093246105,4.46969093,118.22,118.19,9.28]
[1766093248142,4.46969093,118.22,118.19,17.740907]
[1766093248438,4.46969093,118.25,118.2,8.80994492]
[1766093248607,0.71,118.26,118.2,19.24761788]
[1766093248810,4.46969093,118.24,118.2,19.24761788]
[1766093249248,0.71,118.27,118.2,80.34761788]
[1766093249551,4.46969093,118.26,118.2,80.34761788]
[1766093250056,4.46969093,118.25,118.2,80.34761788]
[1766093250354,5.17969093,118.23,118.21,9.28]
[1766093251341,0.71,118.23,118.21,9.28]
[1766093252256,4.46969093,118.25,118.21,17.73950388]
[1766093252428,0.71,118.24,118.21,17.73950388]
[1766093255760,5.17969093,118.25,118.21,17.73950388]
[1766093256060,5.17969093,118.25,118.21,9.28]
[1766093257098,0.71,118.24,118.21,9.28]
[1766093257265,0.71,118.24,118.21,17.73948764]
[1766093257586,5.17969093,118.25,118.21,17.73948764]
[1766093257798,4.46969093,118.22,118.2,10.43767296]
[1766093257975,0.71,118.22,118.19,70.38]
[1766093258183,5.17969093,118.2,118.15,18.08994492]
[1766093258480,4.46969093,118.18,118.15,18.08994492]
[1766093258678,4.46969093,118.18,118.15,9.28]
[1766093259072,4.46969093,118.18,118.15,17.74367422]
[1766093259474,4.46969093,118.17,118.15,9.28]
[1766093259700,4.22969093,118.16,118.15,9.28]
[1766093259998,4.22969093,118.16,118.14,0.2]
[1766093261503,5.17969093,118.17,118.14,0.2]
[1766093262703,5.05969093,118.17,118.14,0.2]
[1766093263602,4.46969093,118.16,118.14,0.2]
[1766093263773,4.46969093,118.16,118.14,0.32]
[1766093265612,0.7,118.18,118.14,8.78453216]
[1766093265774,5.16969093,118.18,118.14,17.59447708]
[1766093266993,0.7,118.2,118.16,0.12]
[1766093267180,4.46969093,118.19,118.16,0.12]
[1766093269414,2.7118219,118.45,118.37,4.41654791]
[1766093269707,0.7,118.48,118.42,19.24761788]
[1766093270074,0.7,118.48,118.42,27.69153736]
[1766093270313,0.7,118.48,118.47,0.99999999]
[1766093270477,0.7,118.48,118.47,32.31752671]
[1766093270677,1.62,118.49,118.48,0.99999999]
[1766093270901,1.62,118.49,118.48,7.22780603]
[1766093271198,6.08969093,118.49,118.47,25.08972068]
[1766093271510,1.62,118.49,118.45,10.43767296]
[1766093272288,1.62,118.49,118.45,36.35787278]
[1766093277090,1.62,118.49,118.45,47.39402035]
[1766093277292,1.62,118.49,118.45,36.35787278]
[1766093277605,1.62,118.49,118.45,37.05787278]
[1766093278209,1.62,118.49,118.45,48.09402035]
[1766093279315,1.62,118.49,118.45,37.05787278]
[1766093280104,12.65614757,118.49,118.45,25.92019982]
[1766093280305,11.03614757,118.48,118.42,20.54609249]
[1766093281322,11.03614757,118.47,118.42,25.14341141]
[1766093281502,11.03614757,118.47,118.41,11.75614757]
[1766093281702,8.44066208,118.48,118.41,0.72]
[1766093282119,11.03614757,118.46,118.41,0.72]
[1766093284000,11.03614757,118.43,118.39,0.72]
[1766093284207,9.26,118.42,118.39,0.72]
[1766093284723,9.26,118.42,118.37,21.47382053]
[1766093284724,9.26,118.42,118.37,22.19382053]
[1766093284901,9.26,118.42,118.38,0.72]
[1766093285302,9.26,118.42,118.36,39.93371037]
[1766093285303,11.03614757,118.41,118.36,39.93371037]
[1766093285512,6.7998474,118.41,118.36,16.44979232]
[1766093285711,6.7998474,118.41,118.36,9.64994492]
[1766093285912,6.7998474,118.41,118.36,0.12]
[1766093286500,6.7998474,118.41,118.36,0.84]
[1766093287728,10.43767296,118.44,118.38,0.72]
[1766093287910,0.7,118.5,118.44,10.43767296]
[1766093288231,9.26,118.47,118.44,10.43767296]
[1766093288608,0.7,118.46,118.43,8.80994492]
[1766093288814,0.7,118.46,118.42,17.23752036]
[1766093289133,0.7,118.46,118.43,6.7998474]
[1766093289339,0.7,118.46,118.42,17.23752036]
[1766093289819,0.7,118.46,118.43,6.7998474]
[1766093290008,9.26,118.47,118.43,6.7998474]
[1766093290421,0.7,118.46,118.43,6.7998474]
[1766093290725,0.7,118.46,118.42,18.88216831]
[1766093290922,0.7,118.46,118.43,6.7998474]
[1766093291311,0.7,118.46,118.42,18.88216831]
[1766093291512,0.7,118.46,118.44,6.7998474]
[1766093293141,9.26,118.48,118.45,15.60979232]
[1766093293432,9.26,118.49,118.47,6.7998474]
[1766093295931,9.26,118.49,118.46,6.7998474]
[1766093296132,9.26,118.49,118.47,6.7998474]
[1766093298609,9.26,118.49,118.45,36.94974255]
[1766093298818,9.94,118.49,118.46,6.7998474]
[1766093299716,0.68,118.48,118.45,10.43767296]
[1766093300235,0.68,118.48,118.45,17.23752036]
[1766093301931,0.68,118.48,118.45,10.43767296]
[1766093302118,0.68,118.48,118.45,17.23752036]
[1766093302325,0.68,118.48,118.45,10.43767296]
[1766093304914,0.68,118.48,118.44,61.1]
[1766093306236,0.68,118.48,118.43,97.08746528]
[1766093307144,0.68,118.46,118.43,71.53767296]
[1766093307342,0.68,118.46,118.43,61.1]
[1766093307543,0.68,118.45,118.43,61.1]
[1766093307850,3.05570632,118.44,118.41,103.20731268]
[1766093308017,3.05570632,118.44,118.41,95.59257437]
[1766093308218,3.05570632,118.44,118.41,102.39242177]
[1766093310144,3.05570632,118.44,118.41,93.94731268]
[1766093311344,3.05570632,118.44,118.42,6.20436352]
[1766093312046,3.05570632,118.44,118.41,93.94731268]
[1766093312239,3.05570632,118.44,118.42,6.22456507]
[1766093312449,3.05570632,118.44,118.43,6.22456507]
[1766093313422,3.05570632,118.44,118.43,11.86226575]
[1766093314345,10.53555372,118.44,118.43,5.66031409]
[1766093314647,0.58,118.43,118.38,7.4798474]
[1766093314949,7.3798474,118.43,118.39,0.68]
[1766093315320,0.58,118.42,118.38,9.48994492]
[1766093315518,3.43521328,118.42,118.38,19.92761788]
[1766093315732,0.58,118.42,118.38,19.92761788]
[1766093317127,0.58,118.42,118.38,19.24761788]
[1766093317329,0.58,118.42,118.39,0.68]
[1766093317828,10.43320024,118.44,118.39,0.68]
[1766093318550,10.43320024,118.44,118.4,0.68]
[1766093318737,3.63570632,118.44,118.4,0.68]
[1766093319326,10.43320024,118.44,118.4,0.68]
[1766093320331,6.79749392,118.43,118.4,61.78]
[1766093320532,7.37749392,118.43,118.4,61.1]
[1766093320730,3.05570632,118.44,118.4,61.1]
[1766093321028,0.58,118.48,118.44,0.68]
[1766093321348,7.37749392,118.48,118.44,0.68]
[1766093321929,9.26,118.49,118.44,0.68]
[1766093321930,9.84,118.49,118.44,0.68]
[1766093322129,9.26,118.49,118.46,0.68]
[1766093323531,9.26,118.49,118.47,0.7]
[1766093329934,0.58,118.47,118.43,0.7]
[1766093330144,0.58,118.47,118.43,11.13767296]
[1766093330436,7.37749392,118.47,118.43,0.7]
[1766093330634,7.37749392,118.47,118.42,15.60743884]
[1766093330635,6.79749392,118.47,118.42,15.60743884]
[1766093330835,0.58,118.46,118.43,0.7]
[1766093331350,7.37749392,118.45,118.41,0.7]
[1766093331541,0.58,118.48,118.42,6.79749392]
[1766093331739,6.79749392,118.47,118.42,0.7]
[1766093331959,7.37749392,118.47,118.42,0.7]
[1766093332261,0.58,118.46,118.42,0.7]
[1766093333975,9.26,118.49,118.42,8.44451172]
[1766093334276,7.37749392,118.46,118.41,11.13767296]
[1766093334478,7.37749392,118.46,118.42,0.7]
[1766093334680,0.58,118.46,118.42,0.7]
[1766093334975,7.37749392,118.46,118.42,0.7]
[1766093335178,7.37749392,118.46,118.42,61.8]
[1766093336560,7.37749392,118.48,118.43,0.7]
[1766093336859,7.37749392,118.48,118.44,0.7]
[1766093336860,0.58,118.48,118.44,0.7]
[1766093337064,7.37749392,118.48,118.44,0.7]
[1766093337656,6.79749392,118.48,118.44,0.7]
[1766093337862,9.26,118.49,118.44,0.7]
[1766093338080,16.63749392,118.49,118.44,18.88075148]
[1766093338270,16.63749392,118.49,118.45,0.7]
[1766093338584,9.26,118.49,118.46,0.7]
[1766093338877,9.26,118.49,118.45,61.1]
[1766093338878,0.1,118.51,118.48,0.7]
[1766093340367,10.53767296,118.51,118.48,9.50994492]
[1766093340566,17.23516688,118.5,118.41,18.33435495]
[1766093340763,10.43767296,118.47,118.44,8.80994492]
[1766093341078,10.43767296,118.47,118.44,9.50994492]
[1766093341567,9.84,118.48,118.44,9.50994492]
[1766093341768,16.63749392,118.48,118.44,9.50994492]
[1766093341978,7.37749392,118.47,118.42,0.68]
[1766093343580,7.37749392,118.47,118.42,15.60743884]
[1766093343581,0.58,118.47,118.42,15.60743884]
[1766093343775,0.58,118.47,118.43,0.68]
[1766093344171,7.37749392,118.47,118.43,0.68]
[1766093345885,9.26,118.48,118.43,0.68]
[1766093346092,16.05749392,118.48,118.43,0.68]
[1766093346382,9.26,118.48,118.45,0.68]
[1766093346993,6.79749392,118.47,118.43,61.78]
[1766093347173,9.84,118.48,118.45,0.68]
[1766093347174,9.26,118.48,118.45,0.68]
[1766093347982,9.26,118.48,118.45,61.78]
[1766093348196,9.26,118.48,118.46,0.68]
[1766093351605,19.79767296,118.51,118.46,0.68]
[1766093351914,11.0338865,118.5,118.47,0.68]
[1766093352282,11.6138865,118.5,118.46,61.78]
[1766093353405,11.6138865,118.5,118.46,61.1]
[1766093353608,0.58,118.5,118.46,61.79]
[1766093353781,11.6138865,118.5,118.46,61.79]
[1766093356513,0.58,118.5,118.46,61.79]
[1766093356818,11.6138865,118.5,118.46,61.79]
[1766093358510,0.58,118.5,118.46,61.79]
[1766093358825,20.37767296,118.51,118.47,0.69]
[1766093359126,30.83155946,118.51,118.47,0.69]
[1766093359311,0.58,118.5,118.47,0.69]
[1766093359510,11.6138865,118.5,118.47,0.69]
[1766093360108,0.58,118.47,118.46,61.0]
[1766093360292,20.8738865,118.47,118.43,0.69]
[1766093360521,0.65,118.5,118.46,0.69]
[1766093360723,0.65,118.49,118.46,0.69]
[1766093361027,11.0338865,118.49,118.44,9.49994492]
[1766093361233,0.65,118.48,118.45,0.69]
[1766093361906,0.65,118.49,118.46,0.69]
[1766093362519,11.6838865,118.49,118.45,0.69]
[1766093362828,9.26,118.5,118.45,0.69]
[1766093363013,0.65,118.52,118.45,9.28632147]
[1766093363214,0.65,118.51,118.47,11.7238865]
[1766093363530,0.1,118.53,118.51,0.69]
[1766093363730,0.75,118.53,118.49,19.84383142]
[1766093364048,0.75,118.53,118.5,0.69]
[1766093364049,0.1,118.53,118.5,0.69]
[1766093364809,0.65,118.57,118.52,11.0338865]
[1766093365023,9.26,118.59,118.51,19.84383142]
[1766093365024,0.65,118.56,118.51,19.84383142]
[1766093365233,9.26,118.55,118.51,20.21383142]
[1766093368505,11.0338865,118.54,118.48,11.0338865]
[1766093368811,0.65,118.53,118.49,8.80994492]
[1766093369011,11.6838865,118.5,118.47,10.43767296]
[1766093369233,11.6838865,118.5,118.45,0.37]
[1766093369234,9.89,118.49,118.45,0.37]
[1766093369417,9.89,118.49,118.46,8.80994492]
[1766093369819,9.89,118.49,118.45,0.37]
[1766093370026,9.89,118.49,118.45,11.4038865]
[1766093370613,9.89,118.49,118.45,0.37]
[1766093370832,0.65,118.48,118.44,9.17994492]
[1766093371539,0.65,118.48,118.44,8.80994492]
[1766093373327,0.65,118.48,118.43,9.17994492]
[1766093373328,11.6838865,118.48,118.43,9.17994492]
[1766093375136,0.65,118.48,118.43,20.21383142]
[1766093375344,0.65,118.48,118.43,9.17994492]
[1766093375508,0.65,118.48,118.43,20.21383142]
[1766093375844,1e-08,118.6,118.48,9.80994491]
[1766093376142,0.1,118.63,118.62,10.43767296]
[1766093376307,0.65,118.67,118.62,10.43767296]
[1766093376641,0.65,118.67,118.61,10.43767296]
[1766093376819,0.65,118.67,118.62,19.84383142]
[1766093377040,11.9738865,118.68,118.57,9.26]
[1766093377041,0.65,118.65,118.6,10.43767296]
[1766093377232,0.65,118.64,118.6,10.43767296]
[1766093377434,11.0338865,118.66,118.6,11.0338865]
[1766093377635,0.65,118.64,118.62,19.84383142]
[1766093377827,0.65,118.67,118.61,19.84383142]
[1766093378151,0.65,118.65,118.61,19.84383142]
[1766093378358,0.65,118.7,118.63,8.80994492]
[1766093378652,11.6838865,118.68,118.63,8.80994492]
[1766093378854,0.65,118.68,118.63,19.84383142]
[1766093379028,0.65,118.68,118.63,8.80994492]
[1766093379359,0.65,118.66,118.62,10.43767296]
[1766093383958,0.69,118.65,118.62,10.43767296]
[1766093384257,0.69,118.7,118.63,19.24761788]
[1766093384431,0.69,118.67,118.63,19.24761788]
[1766093385534,0.69,118.64,118.61,8.80994492]
[1766093385738,0.69,118.64,118.61,19.24761788]
[1766093386634,0.69,118.64,118.61,27.67841762]
[1766093386837,0.69,118.64,118.61,38.71230412]
[1766093387052,10.43767296,118.68,118.61,27.67841762]
[1766093387264,0.69,118.72,118.66,10.43767296]
[1766093387558,0.69,118.71,118.66,11.28041693]
[1766093387762,0.69,118.71,118.68,10.43767296]
[1766093387934,0.69,118.75,118.68,21.47155946]
[1766093388129,9.24,118.76,118.69,19.84383142]
[1766093388130,0.69,118.74,118.69,19.84383142]
[1766093388554,0.69,118.74,118.69,17.23524829]
[1766093388761,0.69,118.74,118.7,11.0338865]
[1766093389062,11.0338865,118.73,118.7,10.43767296]
[1766093389440,0.69,118.75,118.7,10.43767296]
[1766093389635,0.69,118.73,118.7,10.43767296]
[1766093390042,0.69,118.72,118.68,8.80994492]